bitfinex/quotes_BTCUSD_20241110
["timestamp","ask_amount","ask_price","bid_price","bid_amount"]
[1731241243471,0.81160145,79451.0,79420.0,0.18918254]
[1731241243888,0.67940145,79451.0,79420.0,0.18918254]
[1731241244106,0.64588748,79451.0,79430.0,0.19060654]
[1731241244321,0.33505817,79451.0,79430.0,0.19060654]
[1731241244525,0.93235817,79451.0,79430.0,0.19060654]
[1731241244946,0.93235817,79451.0,79430.0,0.001424]
[1731241245195,0.93235817,79451.0,79431.0,0.18918254]
[1731241245196,0.17464406,79451.0,79431.0,0.18918254]
[1731241245439,0.17464406,79451.0,79430.0,0.001424]
[1731241246195,0.21804847,79451.0,79430.0,0.001424]
[1731241246623,0.31804847,79451.0,79430.0,0.001424]
[1731241247053,0.27464406,79451.0,79430.0,0.001424]
[1731241248813,0.27632206,79451.0,79430.0,0.001424]
[1731241249016,0.33655082,79451.0,79430.0,0.001424]
[1731241250256,0.28945906,79451.0,79430.0,0.001424]
[1731241251732,0.98675906,79451.0,79430.0,0.001424]
[1731241251927,1.11137497,79451.0,79430.0,0.001424]
[1731241252334,1.10937497,79451.0,79430.0,0.001424]
[1731241252549,1.11137497,79451.0,79430.0,0.001424]
[1731241252867,0.45265688,79451.0,79430.0,0.001424]
[1731241253056,0.49728085,79451.0,79430.0,0.001424]
[1731241253273,0.37266494,79451.0,79430.0,0.001424]
[1731241253805,0.50486494,79451.0,79430.0,0.001424]
[1731241254234,0.37266494,79451.0,79430.0,0.001424]
[1731241254450,0.32804097,79451.0,79430.0,0.19060654]
[1731241254653,0.38678507,79451.0,79430.0,0.19060654]
[1731241254953,0.38678507,79451.0,79430.0,0.001424]
[1731241256004,0.32304097,79451.0,79431.0,0.18918254]
[1731241256422,0.32804097,79451.0,79430.0,0.001424]
[1731241256832,0.50486494,79451.0,79430.0,0.001424]
[1731241257026,1.20923002,79451.0,79430.0,0.001424]
[1731241257235,1.24777584,79451.0,79430.0,0.001424]
[1731241257443,1.37371805,79451.0,79430.0,0.001424]
[1731241257641,1.32807106,79451.0,79430.0,0.001424]
[1731241258661,1.20212885,79451.0,79430.0,0.001424]
[1731241259115,1.26254296,79451.0,79430.0,0.001424]
[1731241259740,1.08571899,79451.0,79430.0,0.001424]
[1731241259950,1.04717317,79451.0,79430.0,0.001424]
[1731241260165,0.94717317,79451.0,79430.0,0.001424]
[1731241260372,0.94717317,79451.0,79433.0,0.0459]
[1731241260546,0.34459049,79451.0,79433.0,0.0459]
[1731241260732,0.24987317,79451.0,79433.0,0.0459]
[1731241260937,0.50927317,79451.0,79433.0,0.0459]
[1731241261728,0.60927317,79451.0,79433.0,0.0459]
[1731241262350,0.72568303,79451.0,79430.0,0.001424]
[1731241262572,0.86237058,79451.0,79430.0,0.001424]
[1731241262732,0.95786478,79451.0,79430.0,0.001424]
[1731241263361,0.86237058,79451.0,79430.0,0.001424]
[1731241264253,1.00058903,79451.0,79430.0,0.001424]
[1731241264445,0.90801757,79451.0,79430.0,0.001424]
[1731241264912,0.94653031,79451.0,79430.0,0.001424]
[1731241266637,1.60531757,79451.0,79430.0,0.001424]
[1731241266839,1.73125978,79451.0,79430.0,0.001424]
[1731241267293,1.76976096,79451.0,79430.0,0.001424]
[1731241267919,1.83017507,79451.0,79430.0,0.001424]
[1731241268337,1.62008469,79451.0,79430.0,0.001424]
[1731241268764,1.66573168,79451.0,79430.0,0.001424]
[1731241269226,1.64273168,79451.0,79430.0,0.001424]
[1731241269877,1.70422684,79451.0,79430.0,0.001424]
[1731241270516,1.74134118,79451.0,79430.0,0.001424]
[1731241270763,1.86728339,79451.0,79430.0,0.001424]
[1731241270970,2.05837209,79451.0,79430.0,0.001424]
[1731241272290,1.36107209,79451.0,79430.0,0.001424]
[1731241272515,1.16998339,79451.0,79430.0,0.001424]
[1731241272730,1.26078339,79451.0,79430.0,0.001424]
[1731241274020,1.37161574,79451.0,79430.0,0.001424]
[1731241274246,1.37159392,79451.0,79430.0,0.001424]
[1731241274453,1.37158321,79451.0,79430.0,0.001424]
[1731241274885,1.26078339,79451.0,79430.0,0.001424]
[1731241277051,1.11039809,79451.0,79430.0,0.001424]
[1731241277269,1.11001875,79451.0,79430.0,0.001424]
[1731241277679,1.06384272,79451.0,79430.0,0.001424]
[1731241277936,0.93021952,79451.0,79430.0,0.001424]
[1731241278139,0.83790051,79451.0,79430.0,0.001424]
[1731241278891,0.86090051,79451.0,79430.0,0.001424]
[1731241279117,0.96090051,79451.0,79430.0,0.001424]
[1731241279332,1.0034518,79451.0,79430.0,0.001424]
[1731241279509,1.1064729,79451.0,79430.0,0.001424]
[1731241280573,1.49049988,79451.0,79430.0,0.001424]
[1731241280714,1.49049988,79451.0,79437.0,0.0472]
[1731241280928,0.56163702,79451.0,79437.0,0.0472]
[1731241281304,0.52469167,79451.0,79442.0,0.0784]
[1731241282465,0.83524825,79451.0,79442.0,0.0784]
[1731241283265,0.76136574,79451.0,79442.0,0.0784]
[1731241283493,0.86241638,79451.0,79442.0,0.0784]
[1731241284122,0.88404035,79451.0,79442.0,0.0784]
[1731241284581,1.38404035,79451.0,79442.0,0.0784]
[1731241284791,0.92928939,79451.0,79437.0,0.0472]
[1731241286498,0.92928939,79451.0,79430.0,0.082324]
[1731241287454,0.92928939,79451.0,79450.0,0.000839]
[1731241287861,0.92728939,79451.0,79450.0,0.000839]
[1731241288475,0.92928939,79451.0,79450.0,0.000839]
[1731241288958,0.92728939,79451.0,79450.0,0.000839]
[1731241289145,0.92928939,79451.0,79450.0,0.000839]
[1731241290417,1.78178939,79451.0,79450.0,0.000839]
[1731241290633,1.97351843,79451.0,79450.0,0.000839]
[1731241291016,2.00902376,79451.0,79450.0,0.000839]
[1731241292084,1.97351843,79451.0,79450.0,0.000839]
[1731241292227,2.00902376,79451.0,79450.0,0.000839]
[1731241295877,2.01034914,79451.0,79450.0,0.000839]
[1731241296134,1.97484381,79451.0,79450.0,0.000839]
[1731241296368,2.10047835,79451.0,79450.0,0.000839]
[1731241296549,1.97484381,79451.0,79450.0,0.000839]
[1731241296817,1.95184381,79451.0,79450.0,0.000839]
[1731241297013,2.07747593,79451.0,79450.0,0.000839]
[1731241297318,2.11298126,79451.0,79450.0,0.000839]
[1731241297512,1.95184381,79451.0,79450.0,0.000839]
[1731241298139,2.01034914,79451.0,79450.0,0.000839]
[1731241298923,1.61956674,79451.0,79450.0,0.000839]
[1731241299127,1.20438442,79451.0,79450.0,0.000839]
[1731241299393,1.46548108,79451.0,79450.0,0.000839]
[1731241299597,1.47862258,79451.0,79450.0,0.000839]
[1731241299788,1.55913905,79451.0,79450.0,0.000839]
[1731241299969,1.81873905,79451.0,79450.0,0.000839]
[1731241301360,1.87428561,79451.0,79450.0,0.000839]
[1731241301998,1.87646998,79451.0,79450.0,0.000839]
[1731241302209,1.17916998,79451.0,79450.0,0.000839]
[1731241302862,1.15616998,79451.0,79450.0,0.000839]
[1731241303963,1.18818859,79451.0,79450.0,0.000839]
[1731241304406,1.85294203,79451.0,79450.0,0.000839]
[1731241305624,2.11704203,79451.0,79450.0,0.000839]
[1731241306007,2.07563366,79451.0,79450.0,0.000839]
[1731241306469,2.07731166,79451.0,79450.0,0.000839]
[1731241307192,1.81321166,79451.0,79450.0,0.000839]
[1731241307569,2.07731166,79451.0,79450.0,0.000839]
[1731241308007,1.38001166,79451.0,79450.0,0.000839]
[1731241308221,1.42134313,79451.0,79450.0,0.000839]
[1731241309261,1.44105274,79451.0,79450.0,0.000839]
[1731241311009,1.39972127,79451.0,79450.0,0.000839]
[1731241311208,1.44144969,79451.0,79450.0,0.000839]
[1731241311484,1.63379918,79451.0,79450.0,0.000839]
[1731241311896,1.44144969,79451.0,79450.0,0.000839]
[1731241312103,1.39972127,79451.0,79450.0,0.000839]
[1731241312307,1.36061317,79451.0,79450.0,0.000839]
[1731241312921,1.55296266,79451.0,79450.0,0.000839]
[1731241313075,1.39972127,79451.0,79450.0,0.000839]
[1731241313276,1.40475727,79451.0,79450.0,0.000839]
[1731241314017,1.54214495,79451.0,79450.0,0.000839]
[1731241314377,1.58387337,79451.0,79450.0,0.000839]
[1731241314616,1.56087337,79451.0,79450.0,0.000839]
[1731241316588,1.48003685,79451.0,79450.0,0.000839]
[1731241316943,1.21138503,79451.0,79450.0,0.000839]
[1731241317288,1.25049313,79451.0,79450.0,0.000839]
[1731241318160,1.07918503,79451.0,79450.0,0.000839]
[1731241318440,1.07700066,79451.0,79450.0,0.128139]
[1731241318651,1.38979199,79451.0,79450.0,0.128139]
[1731241318885,1.27810225,79451.0,79450.0,0.128139]
[1731241319072,1.34805975,79451.0,79450.0,0.128139]
[1731241319273,1.23637383,79451.0,79450.0,0.128139]
[1731241319524,1.34805798,79451.0,79450.0,0.128139]
[1731241319727,1.23637383,79451.0,79450.0,0.128139]
[1731241320123,1.33637383,79451.0,79450.0,0.128139]
[1731241320711,1.07677383,79451.0,79450.0,0.128139]
[1731241320924,1.17700066,79451.0,79450.0,0.128139]
[1731241321124,0.81290066,79451.0,79450.0,0.128139]
[1731241322119,0.8129522,79451.0,79450.0,0.128139]
[1731241322541,0.9129522,79451.0,79450.0,0.128139]
[1731241323124,0.9520603,79451.0,79450.0,0.128139]
[1731241323325,1.04726633,79451.0,79450.0,0.128139]
[1731241323758,1.02266967,79451.0,79450.0,0.128139]
[1731241324596,1.06146096,79451.0,79450.0,0.128139]
[1731241326875,0.96625493,79451.0,79450.0,0.128139]
[1731241327104,0.92714683,79451.0,79450.0,0.128139]
[1731241327274,0.88835554,79451.0,79450.0,0.128139]
[1731241327726,0.98136277,79451.0,79450.0,0.128139]
[1731241327882,0.98136285,79451.0,79450.0,0.128139]
[1731241328081,0.99040264,79451.0,79450.0,0.128139]
[1731241328268,0.88835554,79451.0,79450.0,0.128139]
[1731241329777,0.86535554,79451.0,79450.0,0.128139]
[1731241331153,0.21290615,79451.0,79450.0,0.128139]
[1731241331368,0.03716649,79454.0,79451.0,0.0313]
[1731241331599,0.18918254,79452.0,79451.0,0.0313]
[1731241331805,0.02905668,79452.0,79451.0,0.0313]
[1731241332236,0.06035668,79452.0,79451.0,0.0313]
[1731241334419,0.05935668,79452.0,79451.0,0.0313]
[1731241336157,0.13019889,79452.0,79451.0,0.005]
[1731241336573,0.12594221,79452.0,79451.0,0.005]
[1731241338597,0.1,79451.0,79450.0,0.000839]
[1731241338817,0.22594221,79451.0,79450.0,0.000839]
[1731241339030,0.22594221,79451.0,79450.0,0.005839]
[1731241339381,0.22594221,79451.0,79450.0,0.000839]
[1731241340448,0.22594221,79451.0,79450.0,0.005839]
[1731241341630,0.22594221,79451.0,79450.0,0.000839]
[1731241341836,0.22594221,79451.0,79450.0,0.005839]
[1731241343597,0.25053547,79451.0,79450.0,0.005839]
[1731241344020,0.25053547,79451.0,79450.0,0.000839]
[1731241344775,0.22753547,79451.0,79450.0,0.000839]
[1731241347240,0.22753547,79451.0,79450.0,0.005839]
[1731241347468,0.20294221,79451.0,79450.0,0.005839]
[1731241347749,0.12594221,79451.0,79450.0,0.005839]
[1731241351564,0.16515159,79451.0,79450.0,0.005839]
[1731241351773,0.16409988,79451.0,79450.0,0.005839]
[1731241351965,0.12594221,79451.0,79450.0,0.005839]
[1731241353089,0.04088517,79452.0,79451.0,0.005]
[1731241353494,0.001728,79452.0,79451.0,0.005]
[1731241354096,0.1,79461.0,79458.0,0.005]
[1731241354309,0.1,79461.0,79450.0,0.000839]
[1731241354310,0.1,79461.0,79460.0,0.005]
[1731241355483,0.22594221,79462.0,79461.0,0.005]
[1731241358658,0.12594221,79462.0,79461.0,0.005]
[1731241359410,0.1513729,79462.0,79461.0,0.005]
[1731241362941,0.02543069,79462.0,79461.0,0.005]
[1731241363160,0.03708548,79472.0,79471.0,0.005]
[1731241363374,0.26472256,79472.0,79471.0,0.005]
[1731241363820,0.34223196,79472.0,79471.0,0.005]
[1731241364028,0.1,79471.0,79470.0,0.005]
[1731241364263,0.26472256,79471.0,79470.0,0.005]
[1731241364669,0.22594221,79471.0,79470.0,0.005]
[1731241365121,0.04042392,79472.0,79471.0,0.005]
[1731241365330,0.18918254,79486.0,79482.0,0.005]
[1731241365532,0.18918254,79486.0,79483.0,0.005]
[1731241365533,0.12594221,79485.0,79483.0,0.005]
[1731241366580,0.1,79484.0,79483.0,0.005]
[1731241366818,0.12594221,79484.0,79483.0,0.005]
[1731241366999,0.22594221,79484.0,79483.0,0.005]
[1731241374094,0.25133074,79484.0,79483.0,0.005]
[1731241376149,0.25300874,79484.0,79471.0,0.000839]
[1731241376373,0.25300874,79484.0,79408.0,0.18918254]
[1731241376374,0.1,79471.0,79456.0,0.005]
[1731241376567,0.12594221,79464.0,79440.0,0.18918254]
[1731241376742,0.1,79451.0,79441.0,0.18918254]
[1731241376937,0.1,79451.0,79439.0,0.000837]
[1731241377514,0.22594221,79451.0,79439.0,0.000837]
[1731241377726,0.39416651,79451.0,79439.0,0.000837]
[1731241378553,0.35544221,79451.0,79439.0,0.000837]
[1731241378765,0.39415908,79451.0,79439.0,0.000837]
[1731241379191,0.35544221,79451.0,79439.0,0.000837]
[1731241380426,0.39558913,79451.0,79439.0,0.000837]
[1731241381274,0.43430351,79451.0,79439.0,0.000837]
[1731241381411,0.39558913,79451.0,79439.0,0.000837]
[1731241381627,0.43430533,79451.0,79439.0,0.000837]
[1731241382076,0.42116157,79451.0,79439.0,0.000837]
[1731241383307,0.29166157,79451.0,79439.0,0.000837]
[1731241383570,0.29166157,79451.0,79439.0,0.005837]
[1731241385023,0.3288297,79451.0,79439.0,0.005837]
[1731241385238,0.3288797,79451.0,79440.0,0.005]
[1731241385871,0.3288797,79451.0,79439.0,0.005837]
[1731241386122,0.29171157,79451.0,79439.0,0.000837]
[1731241386433,0.42891284,79451.0,79439.0,0.000837]
[1731241386841,0.29171157,79451.0,79439.0,0.000837]
[1731241388548,0.34746128,79451.0,79439.0,0.000837]
[1731241388954,0.29171157,79451.0,79439.0,0.000837]
[1731241390425,0.19171157,79451.0,79450.0,0.005839]
[1731241394210,0.19171157,79451.0,79450.0,0.000839]
[1731241394688,0.40438133,79451.0,79450.0,0.000839]
[1731241394891,0.67864822,79451.0,79450.0,0.000839]
[1731241395015,0.64400595,79451.0,79450.0,0.000839]
[1731241395871,0.62541984,79451.0,79450.0,0.000839]
[1731241396447,0.41391157,79451.0,79450.0,0.000839]
[1731241396650,0.46965084,79451.0,79450.0,0.000839]
[1731241396895,0.29171157,79451.0,79450.0,0.000839]
[1731241399857,0.32887201,79451.0,79450.0,0.000839]
[1731241401349,0.42886165,79451.0,79450.0,0.000839]
[1731241401546,0.29171157,79451.0,79450.0,0.000839]
[1731241403424,0.34744323,79451.0,79450.0,0.000839]
[1731241403632,0.29171157,79451.0,79450.0,0.000839]
[1731241404332,0.34744323,79451.0,79450.0,0.000839]
[1731241405176,0.29171157,79451.0,79450.0,0.000839]
[1731241405656,0.12594221,79451.0,79450.0,0.000839]
[1731241405856,0.03714661,79464.0,79453.0,0.005]
[1731241406138,0.18918254,79477.0,79453.0,0.005]
[1731241406139,0.18918254,79458.0,79453.0,0.005]
[1731241406929,0.18918254,79458.0,79450.0,0.000839]
[1731241406930,0.22632915,79458.0,79450.0,0.000839]
[1731241407143,0.25354221,79451.0,79450.0,0.000839]
[1731241408066,0.35354221,79451.0,79450.0,0.000839]
[1731241410766,0.60341799,79451.0,79450.0,0.000839]
[1731241411370,0.60841799,79451.0,79450.0,0.000839]
[1731241411834,0.71979452,79451.0,79450.0,0.000839]
[1731241412022,0.81677397,79451.0,79450.0,0.000839]
[1731241412213,0.70539744,79451.0,79450.0,0.000839]
[1731241413398,0.60841799,79451.0,79450.0,0.000839]
[1731241413998,0.71979452,79451.0,79450.0,0.000839]
[1731241414202,0.60841799,79451.0,79450.0,0.000839]
[1731241418258,0.74076799,79451.0,79450.0,0.000839]
[1731241418450,0.67473387,79451.0,79450.0,0.000839]
[1731241418677,0.73590726,79451.0,79450.0,0.000839]
[1731241419512,0.75890726,79451.0,79450.0,0.000839]
[1731241420177,1.02300726,79451.0,79450.0,0.000839]
[1731241421628,1.03614876,79451.0,79450.0,0.000839]
[1731241422983,1.73344876,79451.0,79450.0,0.000839]
[1731241423190,1.92531226,79451.0,79450.0,0.000839]
[1731241424279,1.66121226,79451.0,79450.0,0.000839]
[1731241424480,1.66020756,79451.0,79450.0,0.000839]
[1731241425338,1.67991892,79451.0,79450.0,0.000839]
[1731241426156,1.68941892,79451.0,79450.0,0.000839]
[1731241426304,1.95351892,79451.0,79450.0,0.000839]
[1731241426912,1.91889462,79451.0,79450.0,0.000839]
[1731241428663,1.88862874,79451.0,79450.0,0.000839]
[1731241429222,1.88815659,79451.0,79450.0,0.000839]
[1731241431100,1.8370552,79451.0,79450.0,0.000839]
[1731241431447,1.83923653,79451.0,79450.0,0.000839]
[1731241432731,1.14193653,79451.0,79450.0,0.000839]
[1731241432975,0.82785754,79451.0,79450.0,0.000839]
[1731241433173,0.57555079,79451.0,79450.0,0.000839]
[1731241434017,0.70566946,79451.0,79450.0,0.000839]
[1731241434416,0.72866946,79451.0,79450.0,0.000839]
[1731241435318,0.82863227,79451.0,79450.0,0.000839]
[1731241435546,0.93846627,79451.0,79450.0,0.000839]
[1731241437145,1.03084928,79451.0,79450.0,0.000839]
[1731241437577,0.9210314,79451.0,79450.0,0.000839]
[1731241437794,0.80063227,79451.0,79450.0,0.000839]
[1731241438002,0.80563227,79451.0,79450.0,0.000839]
[1731241438204,0.9326557,79451.0,79450.0,0.000839]
[1731241438415,0.84025657,79451.0,79450.0,0.000839]
[1731241438616,0.96619878,79451.0,79450.0,0.000839]
[1731241438835,0.96626036,79451.0,79450.0,0.000839]
[1731241439384,0.79933606,79451.0,79450.0,0.000839]
[1731241439806,0.89176337,79451.0,79450.0,0.000839]
[1731241440176,0.79933606,79451.0,79450.0,0.000839]
[1731241440385,0.82896036,79451.0,79450.0,0.000839]
[1731241442062,1.49384628,79451.0,79450.0,0.000839]
[1731241442477,1.22974628,79451.0,79450.0,0.000839]
[1731241442667,1.08080407,79451.0,79450.0,0.000839]
[1731241443087,0.94850407,79451.0,79450.0,0.000839]
[1731241443296,0.91387977,79451.0,79450.0,0.000839]
[1731241443887,1.04617977,79451.0,79450.0,0.000839]
[1731241444062,1.15129775,79451.0,79450.0,0.000839]
[1731241444857,1.18592205,79451.0,79450.0,0.000839]
[1731241446594,1.18592205,79451.0,79450.0,0.076439]
[1731241446595,0.91395129,79451.0,79450.0,0.076439]
[1731241446810,0.81395129,79451.0,79450.0,0.122039]
[1731241447041,0.67734107,79451.0,79450.0,0.122039]
[1731241447248,0.71437087,79451.0,79450.0,0.122039]
[1731241447466,0.63857173,79451.0,79450.0,0.122039]
[1731241448110,0.73857173,79451.0,79450.0,0.122039]
[1731241448827,0.84228093,79451.0,79450.0,0.122039]
[1731241449060,1.00154878,79451.0,79450.0,0.122039]
[1731241449285,0.92751239,79451.0,79450.0,0.122039]
[1731241449522,1.02010957,79451.0,79450.0,0.122039]
[1731241449969,1.00655196,79451.0,79450.0,0.122039]
[1731241450182,1.03382356,79451.0,79450.0,0.122039]
[1731241450388,0.94122638,79451.0,79450.0,0.122039]
[1731241450590,1.07352638,79451.0,79450.0,0.122039]
[1731241450812,1.10815068,79451.0,79450.0,0.122039]
[1731241451291,1.19925836,79451.0,79450.0,0.000839]
[1731241452421,1.16463406,79451.0,79450.0,0.000839]
[1731241452636,0.91596625,79451.0,79450.0,0.000839]
[1731241453054,1.06180128,79451.0,79450.0,0.000839]
[1731241453266,0.95059055,79451.0,79450.0,0.000839]
[1731241454147,1.08289055,79451.0,79450.0,0.000839]
[1731241454371,1.19723234,79451.0,79450.0,0.000839]
[1731241454819,1.06039101,79451.0,79450.0,0.000839]
[1731241455051,1.19742474,79451.0,79450.0,0.000839]
[1731241455480,0.91615865,79451.0,79450.0,0.000839]
[1731241455704,0.81615865,79451.0,79450.0,0.122039]
[1731241456152,0.77755238,79451.0,79450.0,0.122039]
[1731241456390,0.0849939,79451.0,79450.0,0.127039]
[1731241456590,0.04784221,79451.0,79450.0,0.127039]
[1731241457255,0.04952021,79451.0,79450.0,0.127039]
[1731241457471,0.04952021,79451.0,79450.0,0.122039]
[1731241457660,0.04952021,79451.0,79450.0,0.127039]
[1731241458443,0.06154776,79451.0,79450.0,0.127039]
[1731241458647,0.03715169,79462.0,79460.0,0.005]
[1731241458887,0.03715169,79467.0,79466.0,0.005]
[1731241459090,0.001678,79468.0,79467.0,0.005]
[1731241459304,0.07428177,79478.0,79467.0,0.005]
[1731241459305,0.03715169,79475.0,79474.0,0.0806]
[1731241459516,0.001678,79484.0,79476.0,0.005]
[1731241459517,0.03715169,79482.0,79476.0,0.005]
[1731241459682,0.001678,79484.0,79476.0,0.005]
[1731241459683,0.23950683,79477.0,79476.0,0.005]
[1731241459886,0.05032429,79477.0,79476.0,0.005]
[1731241460083,0.12594221,79477.0,79476.0,0.005]
[1731241460282,0.12594221,79477.0,79476.0,0.01306]
[1731241460489,0.22594221,79477.0,79476.0,0.005]
[1731241462671,0.1,79476.0,79474.0,0.0756]
[1731241462894,0.22594221,79475.0,79474.0,0.0756]
[1731241463157,0.1,79474.0,79468.0,0.005]
[1731241463350,0.1,79474.0,79460.0,0.005]
[1731241463351,0.1,79468.0,79460.0,0.005]
[1731241463578,0.1,79468.0,79455.0,0.18918254]
[1731241463579,0.1,79460.0,79458.0,0.0793]
[1731241463827,0.22594221,79459.0,79458.0,0.0793]
[1731241464253,0.22594221,79459.0,79455.0,0.0477]
[1731241464254,0.1,79458.0,79455.0,0.0477]
[1731241464455,0.18918254,79473.0,79453.0,0.005]
[1731241464456,0.1,79456.0,79453.0,0.005]
[1731241464663,0.1,79454.0,79452.0,0.005]
[1731241464870,0.22594221,79453.0,79452.0,0.005]
[1731241465494,0.1,79452.0,79450.0,0.080139]
[1731241465703,0.72594221,79451.0,79450.0,0.000839]
[1731241465913,0.22594221,79451.0,79450.0,0.000839]
[1731241467795,0.22594221,79451.0,79450.0,0.005839]
[1731241468635,0.22594221,79451.0,79450.0,0.053539]
[1731241470472,0.2511236,79451.0,79450.0,0.053539]
[1731241471080,0.24444291,79451.0,79450.0,0.053539]
[1731241472703,0.1511236,79451.0,79450.0,0.053539]
[1731241473041,0.001678,79459.0,79450.0,0.053539]
[1731241473042,0.001678,79459.0,79458.0,0.005]
[1731241473223,0.12762021,79459.0,79458.0,0.005]
[1731241475235,0.23888455,79465.0,79458.0,0.005]
[1731241475236,0.0005,79475.0,79474.0,0.005]
[1731241475611,0.0005,79475.0,79474.0,0.0843]
[1731241477566,0.0005,79475.0,79474.0,0.14093]
[1731241478366,0.0005,79475.0,79474.0,0.14593]
[1731241478929,0.0005,79475.0,79474.0,0.137]
[1731241480594,0.002178,79475.0,79474.0,0.137]
[1731241482379,0.002178,79475.0,79474.0,0.139]
[1731241482577,0.002178,79475.0,79474.0,0.137]
[1731241482987,0.002178,79475.0,79474.0,0.142]
[1731241483222,0.002178,79475.0,79474.0,0.1564]
[1731241483399,0.002178,79475.0,79474.0,0.15891621]
[1731241483628,0.002178,79475.0,79474.0,0.142]
[1731241483995,0.002178,79475.0,79474.0,0.144]
[1731241484473,0.001678,79484.0,79483.0,0.1366]
[1731241484858,0.001678,79484.0,79483.0,0.1416]
[1731241490270,0.001678,79484.0,79483.0,0.1466]
[1731241490486,0.001678,79484.0,79483.0,0.28720221]
[1731241490679,0.001678,79484.0,79483.0,0.16126]
[1731241492367,0.001678,79484.0,79483.0,0.1466]
[1731241495327,0.001678,79484.0,79483.0,0.015]
[1731241500203,0.001678,79484.0,79483.0,0.01]
[1731241500559,0.001678,79484.0,79483.0,0.015]
[1731241500911,0.001678,79484.0,79483.0,0.01]
[1731241501115,0.12762021,79484.0,79483.0,0.005]
[1731241501448,0.001678,79484.0,79483.0,0.005]
[1731241502295,0.001678,79484.0,79483.0,0.01]
[1731241502805,0.001678,79484.0,79483.0,0.005]
[1731241503213,0.12762021,79484.0,79483.0,0.005]
[1731241504834,0.001678,79484.0,79483.0,0.005]
[1731241505007,0.001678,79484.0,79483.0,0.01]
[1731241506087,0.12762021,79484.0,79483.0,0.005]
[1731241507725,0.16636698,79484.0,79483.0,0.005]
[1731241509594,0.26636698,79484.0,79483.0,0.005]
[1731241510796,0.26636698,79484.0,79483.0,0.015]
[1731241510797,0.04042477,79484.0,79483.0,0.015]
[1731241511015,0.04042477,79484.0,79483.0,0.01]
[1731241511233,0.04042477,79484.0,79483.0,0.005]
[1731241512077,5e-05,79485.0,79484.0,0.015]
[1731241512295,0.18918254,79497.0,79492.0,0.01]
[1731241512913,0.00168,79498.0,79492.0,0.01]
[1731241514722,0.00168,79498.0,79492.0,0.012]
[1731241514924,0.00168,79498.0,79492.0,0.01]
[1731241519066,0.00168,79498.0,79492.0,0.015]
[1731241519714,0.03878327,79498.0,79492.0,0.015]
[1731241519929,0.00168,79498.0,79492.0,0.015]
[1731241520133,0.02843236,79498.0,79497.0,0.005]
[1731241520347,0.12594221,79498.0,79497.0,0.043739]
[1731241521857,0.12594221,79498.0,79497.0,0.005]
[1731241522604,0.18159711,79498.0,79497.0,0.005]
[1731241523558,0.26336199,79498.0,79497.0,0.005]
[1731241523960,0.35612016,79498.0,79497.0,0.005]
[1731241524113,0.26336199,79498.0,79497.0,0.005]
[1731241526003,0.26192614,79498.0,79497.0,0.005]
[1731241527275,0.22745416,79498.0,79497.0,0.005]
[1731241528085,0.22913216,79498.0,79494.0,0.005]
[1731241528286,0.09310555,79496.0,79495.0,0.005]
[1731241528895,0.09166817,79498.0,79497.0,0.005]
[1731241529386,0.22914835,79498.0,79497.0,0.005]
[1731241529789,0.22914835,79498.0,79497.0,0.043739]
[1731241530211,0.22914835,79498.0,79497.0,0.005]
[1731241530756,0.32229021,79498.0,79497.0,0.005]
[1731241531293,0.22914835,79498.0,79497.0,0.005]
[1731241531497,0.1819,79497.0,79492.0,0.37739]
[1731241531811,0.1,79495.0,79492.0,0.37739]
[1731241532013,0.1,79493.0,79492.0,0.37739]
[1731241532178,0.51392755,79493.0,79492.0,0.37739]
[1731241532394,0.40221078,79493.0,79492.0,0.37739]
[1731241532853,0.43664624,79493.0,79492.0,0.37739]
[1731241533078,0.52961078,79493.0,79492.0,0.37739]
[1731241533369,0.52961078,79493.0,79492.0,0.28667934]
[1731241533619,0.52961078,79493.0,79492.0,0.23851799]
[1731241534048,0.53461078,79493.0,79492.0,0.08664956]
[1731241534225,0.005,79492.0,79485.0,0.000839]
[1731241534456,0.22594221,79486.0,79485.0,0.000839]
[1731241534675,0.40221078,79486.0,79485.0,0.000839]
[1731241535280,0.1,79485.0,79475.0,0.19002154]
[1731241535525,0.1,79480.0,79475.0,0.19002154]
[1731241535727,0.1,79478.0,79475.0,0.19002154]
[1731241535929,0.1,79476.0,79475.0,0.000839]
[1731241536185,0.36342239,79476.0,79475.0,0.000839]
[1731241538021,0.41006956,79476.0,79475.0,0.000839]
[1731241538985,0.27258938,79476.0,79475.0,0.000839]
[1731241539317,0.40967765,79476.0,79475.0,0.000839]
[1731241539996,0.48394133,79476.0,79475.0,0.000839]
[1731241540423,0.51876256,79476.0,79475.0,0.000839]
[1731241540859,0.51703234,79476.0,79475.0,0.000839]
[1731241541077,0.56253234,79476.0,79475.0,0.000839]
[1731241543968,0.53953234,79476.0,79475.0,0.000839]
[1731241544636,0.41213234,79476.0,79475.0,0.000839]
[1731241544863,0.10921809,79476.0,79475.0,0.000839]
[1731241545079,0.23516047,79476.0,79475.0,0.000839]
[1731241545505,0.19806928,79476.0,79475.0,0.000839]
[1731241545732,0.25370472,79476.0,79475.0,0.000839]
[1731241545956,0.43496363,79476.0,79475.0,0.000839]
[1731241546170,0.50914055,79476.0,79475.0,0.000839]
[1731241546384,0.43496363,79476.0,79475.0,0.000839]
[1731241546814,0.43495087,79476.0,79475.0,0.000839]
[1731241547006,0.50879549,79476.0,79475.0,0.000839]
[1731241547218,0.52733167,79476.0,79475.0,0.000839]
[1731241547442,0.43461857,79476.0,79475.0,0.000839]
[1731241547888,0.5087656,79476.0,79475.0,0.000839]
[1731241548507,0.50876671,79476.0,79475.0,0.000839]
[1731241548722,0.50876671,79476.0,79465.0,0.18918254]
[1731241548723,0.1,79475.0,79465.0,0.18743792]
[1731241548994,0.50876671,79476.0,79465.0,0.18743792]
[1731241548995,0.03706996,79470.0,79465.0,0.18743792]
[1731241549181,0.1,79468.0,79465.0,0.18743792]
[1731241549415,0.1,79466.0,79457.0,0.005]